Cogmind - Beta 13 @@@ ROGUE MODE // 2024.04.29 @ 12:36:24 Player: MO-55 Result: Destroyed by AG-62875 with Assembled Focal Cannon Performance ------------- Evolutions (4) 2000 Regions Visited (13) 2600 Robots Destroyed (137) 685 Value Destroyed (5194) 5194 Prototype IDs (29) 580 Alien Tech Used (0) 0 Bonus (1337) 1337 TOTAL SCORE: 12396 Bonus ------- Follower Combat Kills 37 Met Data Miner 300 Destroyed Z-Imprinter 1000 Cogmind --------- Core Integrity 0/850 Matter 201/300 Energy 166/290 System Corruption 0% Temperature Cool (6) Movement Walking (120) Location -6/Deep Caves Parts ------- > --- POWER (2) -------- Reinforced Deuterium Engine > --- PROPULSION (5) --- Armored Leg Enhanced Flexi-carbon Leg Myomer Leg Myomer Leg Myomer Leg > --- UTILITY (6) ------ High-capacity Storage Unit > --- WEAPON (2) ------- Molecular Deconstructor > --- INVENTORY (20) --- Antimatter Reactor Zionite Biocell (600) 0b10 Decoder Chip [Scout] Improved Hacking Suite Makeshift System Shield Zionite Phaser-S Heavy Missile Launcher Powered Hammer CR-A16's Pointy Stick Peak State ------------ > --- POWER ------------ Improved Deuterium Engine Reinforced Deuterium Engine > --- PROPULSION ------- Carbon-fiber Leg Carbon-fiber Leg Armored Leg Enhanced Flexi-carbon Leg Myomer Leg > --- UTILITY ---------- High-capacity Storage Unit Melee Analysis Suite Zionite Heavy Carapace Improved Heavy Armor Plating > --- WEAPON ----------- Molecular Deconstructor > --- INVENTORY -------- Antimatter Reactor Myomer Leg Myomer Leg Myomer Leg Zionite Biocell 0b10 Decoder Chip [Scout] Improved Light Armor Plating Improved Light Armor Plating Improved Light Armor Plating Experimental Thermal Shield Improved Hacking Suite Makeshift System Shield Zionite Phaser-S Heavy Missile Launcher Powered Hammer Chainsword Ripper CR-A16's Pointy Stick [Rating: 86] Favorites ----------- Power Reinforced Deuterium Engine Engine Reinforced Deuterium Engine Power Core Light Nuclear Core Reactor Antimatter Reactor Propulsion Carbon-fiber Leg Treads Light Treads Leg Carbon-fiber Leg Wheel Armored Huge Wheel Hover Unit Zionite Glidesys I Flight Unit Cooled VTOL Module Utility High-capacity Storage Unit Device Improved Terrain Scanner Storage High-capacity Storage Unit Processor Machine Analyzer Hackware Hacking Suite Protection Improved Heavy Armor Plating Weapon Chainsword Energy Gun Particle Gun Energy Cannon Beam Cannon Ballistic Gun Subdweller Machine Gun Launcher Grenade Launcher Special Weapon Mining Laser Impact Weapon Powered Hammer Slashing Weapon Chainsword Piercing Weapon Spear Build | -11 -10 -10 -8 -7 -7 -7 -7 -6 -6 -6 -6 -6 -6 ------- Run | Yrd Mat Sub Mat Fac Low Low Dat Pro Fac Low Low Zio Dee Slots Evolved 8 | . . . 4 2 . . . . 2 . . . . Power 1 | . . . . . . . . . 1 . . . . Propulsion 3 | . . . 2 1 . . . . . . . . . Utility 4 | . . . 2 1 . . . . 1 . . . . Weapon . | . . . . . . . . . . . . . . Parts Attached 275 | 6 6 27 20 37 18 9 21 22 41 21 1 10 36 Power 24 | 1 1 2 2 3 1 1 1 . 3 2 1 2 4 Engine 16 | 1 1 2 1 2 . . 1 . 2 2 1 1 2 Core 3 | . . . 1 . 1 1 . . . . . . . Reactor 5 | . . . . 1 . . . . 1 . . 1 2 Propulsion 69 | 2 . 7 6 7 6 . 5 8 10 8 . 2 8 Treads 11 | . . 3 . . 4 . . 4 . . . . . Leg 53 | 2 . 3 6 6 1 . 5 4 10 8 . 2 6 Wheel 2 | . . 1 . . 1 . . . . . . . . Hover 2 | . . . . . . . . . . . . . 2 Flight 1 | . . . . 1 . . . . . . . . . Utility 129 | 1 3 8 9 17 8 8 13 13 22 11 . 3 13 Device 63 | . 2 4 4 5 4 6 6 8 13 6 . 3 2 Storage 13 | 1 1 . 1 5 2 . 1 . 1 . . . 1 Processor 9 | . . . 1 1 1 . . 1 3 2 . . . Hackware 4 | . . . 1 . . . . . 2 . . . 1 Protection 40 | . . 4 2 6 1 2 6 4 3 3 . . 9 Artifact . | . . . . . . . . . . . . . . Weapon 53 | 2 2 10 3 10 3 . 2 1 6 . . 3 11 Energy Gun 9 | 2 1 4 . . . . . . . . . . 2 Energy Cannon 3 | . 1 1 . . . . 1 . . . . . . Ballistic Gun 8 | . . 3 3 1 1 . . . . . . . . Ballistic Cannon . | . . . . . . . . . . . . . . Launcher 3 | . . 1 . 1 1 . . . . . . . . Special Weapon 4 | . . 1 . . . . . . . . . . 3 Impact Weapon 8 | . . . . 6 . . . . 1 . . . 1 Slashing Weapon 13 | . . . . 2 1 . 1 1 3 . . 1 4 Piercing Weapon 5 | . . . . . . . . . 2 . . 2 1 Special Melee Weapon . | . . . . . . . . . . . . . . Unidentified Prototypes 19 | . . . 1 3 . . 4 . 1 . . . 10 Parts Lost 64 | . . 10 1 1 4 . 10 11 6 4 . . 17 Power 7 | . . 3 . . 1 . 1 . . 1 . . 1 Propulsion 20 | . . 4 . 1 3 . 3 3 1 1 . . 4 Utility 27 | . . . 1 . . . 6 7 2 2 . . 9 Weapon 10 | . . 3 . . . . . 1 3 . . . 3 Highest Loss Streak 12 | . . 2 1 1 3 . 5 5 4 3 . . 12 To Critical Strikes 1 | . . . . . 1 . . . . . . . . Average Slot Usage (%) 91 | . 98 88 79 99 91 92 94 91 92 90 86 90 88 Engine 8 | . 14 11 1 6 . . 4 7 11 12 13 10 12 Core 1 | . . . 5 . 6 7 2 . . . . . . Treads 3 | . . 5 . . 21 23 10 5 . . . . . Leg 24 | . 28 8 20 37 1 . 19 31 32 32 33 33 32 Wheel 1 | . . 6 1 . 6 7 3 . . . . . . Device 8 | . 12 6 7 7 10 14 10 10 13 11 6 6 3 Storage 8 | . 14 14 9 7 7 7 7 7 6 6 6 6 6 Processor 6 | . . . 6 7 14 15 10 4 8 13 13 12 5 Hackware 1 | . . . . 7 . . . . 3 . . . . Protection 6 | . . 7 7 7 3 . 7 6 5 6 6 6 13 Energy Gun 2 | . 25 3 8 . . . . . . . . . . Energy Cannon 2 | . 2 13 2 . . . . . . . . . . Ballistic Gun 2 | . . 9 7 2 . . . . . . . . . Impact Weapon 1 | . . . . 8 . . . . . . . . . Slashing Weapon 5 | . . . . 3 14 15 14 15 7 6 6 6 9 Naked Turns . | . . . . . . . . . . . . . . Heaviest Build 106 | 12 32 39 51 81 100 76 106 88 93 92 92 94 94 Greatest Support 119 | 20 20 40 54 74 30 28 94 94 101 98 98 99 119 Greatest Overweight (x) 29 | 2 1 12 10 1 4 2 29 1 1 1 . . 1 Average Overweight (x) . | . . 2 1 . 1 1 . . . . . . . Largest Inventory Capacity 20 | 8 15 15 15 20 20 20 20 20 20 20 20 20 20 Average Capacity 17 | 7 13 15 15 16 19 20 20 20 20 20 20 20 20 Most Carried 20 | 6 15 15 15 20 20 20 20 20 20 20 20 20 20 Average Carried 15 | 4 10 12 11 15 17 19 17 16 17 19 19 19 17 Final Capacity 20 | 8 15 15 15 20 20 20 20 20 20 20 20 20 20 Final Carried 20 | 6 15 11 14 18 20 20 18 14 20 20 20 18 9 Class Distribution -------------------- 36% | Mutant 23% | Scavenger-Mutant 21% | Scavenger-Gladiator 13% | Gladiator 4% | Derelict-Gladiator Dominant Class ---------------- Mutant | -10/Materials Mutant | -10/Subcaves Scavenger-Mutant | -8/Materials Scavenger-Mutant | -7/Factory Gladiator | -7/Lower Caves Gladiator | -7/Lower Caves Scavenger-Gladiator | -7/Data Miner Scavenger-Mutant | -6/Proximity Caves Scavenger-Mutant | -6/Factory Scavenger-Gladiator | -6/Lower Caves Scavenger-Gladiator | -6/Lower Caves Scavenger-Gladiator | -6/Zion Derelict-Gladiator | -6/Deep Caves Resources | -11 -10 -10 -8 -7 -7 -7 -7 -6 -6 -6 -6 -6 -6 ----------- Run | Yrd Mat Sub Mat Fac Low Low Dat Pro Fac Low Low Zio Dee Matter Collected 3653 | 260 222 350 468 436 215 127 222 205 481 156 135 67 309 Remotely . | . . . . . . . . . . . . . . Salvage Created 6736 | 87 830 363 564 1503 466 146 411 434 1005 430 250 . 247 Parts 294 | 16 51 25 27 37 16 6 14 15 48 18 7 . 14 Haulers Intercepted 6 | . 2 . 3 1 . . . . . . . . . Recyclers Shooed 3 | 1 2 . . . . . . . . . . . . Parts Field Recycled . | . . . . . . . . . . . . . . Retrieved Matter . | . . . . . . . . . . . . . . Parts Self-Destructed 55 | . . 13 . . 9 9 . 15 . . 9 . . Prevented . | . . . . . . . . . . . . . . Kills | -11 -10 -10 -8 -7 -7 -7 -7 -6 -6 -6 -6 -6 -6 ------- Run | Yrd Mat Sub Mat Fac Low Low Dat Pro Fac Low Low Zio Dee Combat Hostiles Destroyed 108 | . 15 12 6 23 7 2 4 9 14 6 3 . 7 Melee 59 | . . . . 11 3 2 4 9 14 6 3 . 7 Guns 24 | . 14 4 5 . 1 . . . . . . . . Cannons 8 | . 1 6 1 . . . . . . . . . . AOE 5 | . . 2 . . 3 . . . . . . . . Classes Destroyed 20 | 1 6 2 2 3 . 2 . . . 1 1 . 2 Worker 3 | . 2 . . 1 . . . . . . . . . Builder 2 | . 1 . . . . . . . 1 . . . . Tunneler 8 | 5 2 . . 1 . . . . . . . . . Hauler 6 | . 2 . 3 1 . . . . . . . . . Recycler 6 | . 1 . 1 3 . . . . 1 . . . . Mechanic 2 | . . . 1 1 . . . . . . . . . Operator 6 | . 1 . 2 2 . . . . 1 . . . . Watcher 1 | . . . . 1 . . . . . . . . . Swarmer 5 | . . 2 . . . . . 3 . . . . . Grunt 55 | . 15 2 4 17 5 . . 5 7 . . . . Brawler 4 | . . . . 1 2 . . . 1 . . . . Sentry 11 | . . . 2 3 . . . 1 4 . 1 . . Hunter 1 | . . . . . . 1 . . . . . . . Programmer 6 | . . . . 2 . 1 . . 2 . 1 . . Enhanced Grunt 4 | . . . . . . . 4 . . . . . . Subdweller 8 | . . 8 . . . . . . . . . . . Z-Technician 3 | . . . . . . . . . . . . . 3 Z-Light 1 | . . . . . . . . . . . . . 1 Samaritan 2 | . . . . . . 1 . . . 1 . . . Assembled 5 | . . . . . . . . . . . . . 5 Thug 5 | . . . . . . . . . . 5 . . . Butcher 1 | . . . . . . . . . . 1 . . . Mutant 1 | . . . . . . . . . . . 1 . . Best Kill Streak 6 | 3 5 2 2 4 4 1 1 3 3 6 1 . 3 Combat Bots Only 6 | . 3 2 2 4 4 1 1 3 3 6 1 . 3 Max Kills in Single Turn 2 | 1 2 1 1 1 2 1 1 1 1 1 1 . 1 Gunslinging . | . . . . . . . . . . . . . . Exploded 2 | . . 1 . . 2 . . . . . . . . Melee 1 | . . . . 1 1 1 1 1 1 1 1 . 1 Uniques/NPCs Destroyed 1 | . . . . . . . . . . . . . 1 Z-Imprinter (-6/Deep Caves) Combat | -11 -10 -10 -8 -7 -7 -7 -7 -6 -6 -6 -6 -6 -6 -------- Run | Yrd Mat Sub Mat Fac Low Low Dat Pro Fac Low Low Zio Dee Hostile Shots Fired 1022 | . 30 90 25 187 34 14 64 147 124 78 81 . 148 Missed 280 | . 11 25 8 64 5 1 19 36 38 22 27 . 24 Damage Taken 12885 | . 315 1167 251 1451 598 142 1750 1525 942 647 265 . 3832 Core 1797 | . 34 206 59 162 96 . 186 202 96 67 19 . 670 Absorbed by Shields 1412 | . . . . 179 77 31 264 2 220 224 270 . 145 Ignored by Resistances 1679 | . . 57 . . . 30 59 450 123 331 . . 629 Regen/Repaired (Parts) 715 | . . . . . . . . . 26 . . 689 . Core Remaining (%) 50 | 100 . 4 89 . . . . 7 . . . . . Volleys Fired 213 | 8 45 95 41 5 3 . . . . . . . 16 Largest 2 | 2 2 2 2 2 1 . . . . . . . 1 Hottest 125 | 100 125 125 125 50 36 . . . . . . . . Shots Fired 348 | 16 90 131 82 10 3 . . . . . . . 16 Gun 248 | 16 85 59 77 10 1 . . . . . . . . Cannon 64 | . 5 54 5 . . . . . . . . . . Launcher 7 | . . 5 . . 2 . . . . . . . . Special 29 | . . 13 . . . . . . . . . . 16 Kinetic 102 | . . 52 39 10 1 . . . . . . . . Thermal 223 | 16 90 74 43 . . . . . . . . . . Explosive 7 | . . 5 . . 2 . . . . . . . . Electromagnetic . | . . . . . . . . . . . . . . Robot Hit Streak 26 | 9 26 10 15 3 4 . . . . . . . 6 Robot Miss Streak 4 | 3 2 2 4 2 . . . . . . . . . Penetration Max . | . . . . . . . . . . . . . . Secondary Targets . | . . . . . . . . . . . . . . Shots Hit Robots 519 | 10 66 63 49 94 24 8 37 34 52 16 17 . 49 Core Hits 198 | 5 39 20 21 18 18 2 14 15 22 8 4 . 12 Critical Kills 2 | . . . . 2 . . . . . . . . . Critical Parts Destroyed 14 | . . . 1 13 . . . . . . . . . Critical Strikes 62 | 1 4 . 2 23 2 1 5 5 9 5 3 . 2 Burn 6 | 1 4 . 1 . . . . . . . . . . Destroy 1 | . . . 1 . . . . . . . . . . Smash 15 | . . . . 15 . . . . . . . . . Sever 40 | . . . . 8 2 1 5 5 9 5 3 . 2 Melee Attacks 552 | . . . . 134 31 17 120 51 83 19 21 . 76 Impact 89 | . . . . 86 . . . . 3 . . . . Slashing 449 | . . . . 48 31 17 120 51 69 19 21 . 73 Piercing 14 | . . . . . . . . . 11 . . . 3 Sneak Attacks 24 | . . . . 11 . 3 1 . 4 1 1 . 3 Combat Hostiles 1 | . . . . . . . . . . . 1 . . Follow-up Attacks 43 | . . . . 16 1 1 7 8 1 . . . 9 Damage Inflicted 19038 | 126 1011 1372 818 4413 1604 436 1499 1232 2695 841 955 . 2036 Guns 2409 | 126 939 457 782 91 14 . . . . . . . . Cannons 687 | . 72 579 36 . . . . . . . . . . Explosions 668 | . . 336 . . 332 . . . . . . . . Melee 15274 | . . . . 4322 1258 436 1499 1232 2695 841 955 . 2036 Ramming . | . . . . . . . . . . . . . . Kinetic 868 | . . 389 374 91 14 . . . . . . . . Thermal 2228 | 126 1011 647 444 . . . . . . . . . . Explosive 668 | . . 336 . . 332 . . . . . . . . Electromagnetic . | . . . . . . . . . . . . . . Impact 3198 | . . . . 3060 . . . . 138 . . . . Slashing 11790 | . . . . 1262 1258 436 1499 1232 2371 841 955 . 1936 Piercing 286 | . . . . . . . . . 186 . . . 100 Highest Corruption 15 | . 1 1 . 1 9 9 9 9 13 13 15 15 . Average Corruption 7 | . 1 1 . 1 8 9 9 9 12 13 13 15 . Corruption Purged . | . . . . . . . . . . . . . . Corruption Blocked . | . . . . . . . . . . . . . . Effects 255 | . 3 27 . 5 28 18 35 21 69 27 20 2 . Message Errors 68 | . . 10 . 2 3 2 14 9 20 5 2 1 . Matter Fused 54 | . 2 5 . 1 6 4 5 5 13 8 5 . . Heat Flow Errors 33 | . 1 4 . . 3 3 6 2 5 3 6 . . Energy Discharges 29 | . . 3 . . 2 2 3 . 13 2 4 . . Parts Rejected 3 | . . . . . . . . . 2 . 1 . . Parts Fused 2 | . . . . . 1 . . . . 1 . . . Data Loss (minor) 38 | . . 3 . 2 7 4 5 1 11 4 . 1 . Data Loss (major) 15 | . . . . . 4 2 . 3 4 . 2 . . Misfires 2 | . . 2 . . . . . . . . . . . Alerts 10 | . . . . . 2 1 2 1 1 3 . . . Misdirections 1 | . . . . . . . . . . 1 . . . Overload Shots . | . . . . . . . . . . . . . . Overflow Damage 2001 | . . . . 1098 341 113 . 42 139 . 105 . 163 Projectiles . | . . . . . . . . . . . . . . Explosions . | . . . . . . . . . . . . . . Melee 2001 | . . . . 1098 341 113 . 42 139 . 105 . 163 Knockbacks 11 | . . . . 10 . . . . 1 . . . . Impact 10 | . . . . 9 . . . . 1 . . . . Kinetic . | . . . . . . . . . . . . . . Secondary 1 | . . . . 1 . . . . . . . . . Self-Inflicted Damage 108 | . . . . . 108 . . . . . . . . Shots 2 | . . . . . 2 . . . . . . . . Rammed . | . . . . . . . . . . . . . . Targets Rammed . | . . . . . . . . . . . . . . Kicked . | . . . . . . . . . . . . . . Crushed . | . . . . . . . . . . . . . . Highest Temperature 288 | 156 231 248 197 13 221 269 269 236 256 282 288 . 31 Average Temperature 75 | 55 54 40 73 3 68 125 104 69 89 86 125 . 11 Received Heat Transfer 3505 | . 132 150 153 592 216 . . 812 216 371 58 . 805 Effects 3 | . . . . . . 2 . . . . 1 . . Energy Bleed 1 | . . . . . . 1 . . . . . . . Interference 2 | . . . . . . 1 . . . . 1 . . Siege Activations . | . . . . . . . . . . . . . . Robots Corrupted . | . . . . . . . . . . . . . . Combat Hostiles . | . . . . . . . . . . . . . . Parts Fried 18 | . . . . 18 . . . . . . . . . Impact Corruptions 41 | . . . . 40 . . . . 1 . . . . Robots Melted . | . . . . . . . . . . . . . . Combat Hostiles . | . . . . . . . . . . . . . . Parts Melted 9 | . 9 . . . . . . . . . . . . Heat Transferred 5772 | 444 2849 1369 1110 . . . . . . . . . . Parts Sabotaged . | . . . . . . . . . . . . . . Parts Stolen . | . . . . . . . . . . . . . . Parts Stripped . | . . . . . . . . . . . . . . Power Chain Reactions . | . . . . . . . . . . . . . . Alert | -11 -10 -10 -8 -7 -7 -7 -7 -6 -6 -6 -6 -6 -6 ------- Run | Yrd Mat Sub Mat Fac Low Low Dat Pro Fac Low Low Zio Dee Peak Influence 382 | 25 222 . 100 382 . . . . 213 . . . . Initial 88 | . 16 . 23 25 . . . . 88 . . . . Average 94 | 9 110 . 49 100 . . . . 107 . . . . Maximum Alert Level 1 | . 1 . . 1 . . . . 1 . . . . Low Security (%) 90 | 100 85 . 100 83 . . . . 96 . . . . Level 1 9 | . 14 . . 16 . . . . 3 . . . . Level 2 . | . . . . . . . . . . . . . . Level 3 . | . . . . . . . . . . . . . . Level 4 . | . . . . . . . . . . . . . . Level 5 . | . . . . . . . . . . . . . . High Security . | . . . . . . . . . . . . . . Max Security . | . . . . . . . . . . . . . . Squads Dispatched 19 | . 3 . 2 8 . . . . 6 . . . . Investigation 3 | . 1 . . 1 . . . . 1 . . . . Extermination 5 | . . . . 2 . . . . 3 . . . . Reinforcement 11 | . 2 . 2 5 . . . . 2 . . . . Assault . | . . . . . . . . . . . . . . Garrison . | . . . . . . . . . . . . . . Intercept . | . . . . . . . . . . . . . . Searches Triggered . | . . . . . . . . . . . . . . Construction Impeded . | . . . . . . . . . . . . . . Haulers Reinforced 2 | . . . . 1 . . . . 1 . . . . Active Scanning Responses . | . . . . . . . . . . . . . . Cargo Convoy Interrupts . | . . . . . . . . . . . . . . Stealth | -11 -10 -10 -8 -7 -7 -7 -7 -6 -6 -6 -6 -6 -6 --------- Run | Yrd Mat Sub Mat Fac Low Low Dat Pro Fac Low Low Zio Dee Distress Signals 6 | . 4 . 1 1 . . . . . . . . . Communications Jammed . | . . . . . . . . . . . . . . Distress Signals . | . . . . . . . . . . . . . . Times Spotted 174 | . 27 14 13 38 8 5 5 13 24 6 8 . 13 Peak Tracking Total 8 | . 4 2 3 8 4 3 3 4 4 6 3 . 4 Tactical Retreats 23 | . 1 . . 4 . . . 3 5 . 4 . 6 Traps | -11 -10 -10 -8 -7 -7 -7 -7 -6 -6 -6 -6 -6 -6 ------- Run | Yrd Mat Sub Mat Fac Low Low Dat Pro Fac Low Low Zio Dee Traps Triggered 3 | . 3 . . . . . . . . . . . . Indirectly . | . . . . . . . . . . . . . . Trap Hack Attempts . | . . . . . . . . . . . . . . Triggered . | . . . . . . . . . . . . . . Disarmed . | . . . . . . . . . . . . . . Reprogrammed . | . . . . . . . . . . . . . . Reused . | . . . . . . . . . . . . . . Traps Extracted . | . . . . . . . . . . . . . . Installed . | . . . . . . . . . . . . . . Triggered 2 | . . . . . . 2 . . . . . . . Machines | -11 -10 -10 -8 -7 -7 -7 -7 -6 -6 -6 -6 -6 -6 ---------- Run | Yrd Mat Sub Mat Fac Low Low Dat Pro Fac Low Low Zio Dee Machines Disabled 6 | . . 1 . . 1 1 1 . . . 1 . 1 Max in Single Turn 1 | . . 1 . . 1 1 1 . . . 1 . 1 Garrison Access 1 | . . . . 1 . . . . . . . . . Machines Repaired . | . . . . . . . . . . . . . . Machines Dismantled . | . . . . . . . . . . . . . . Machines Sabotaged . | . . . . . . . . . . . . . . Overloaded Fab Kills . | . . . . . . . . . . . . . . Hacking | -11 -10 -10 -8 -7 -7 -7 -7 -6 -6 -6 -6 -6 -6 --------- Run | Yrd Mat Sub Mat Fac Low Low Dat Pro Fac Low Low Zio Dee Machines Accessed 35 | . 5 1 3 9 1 . 4 . 10 2 . . . Terminals 16 | . 5 . 2 5 . . . . 4 . . . . Fabricators 4 | . . . . 2 . . . . 2 . . . . Repair Stations 1 | . . . . . . . . . 1 . . . . Recycling Units . | . . . . . . . . . . . . . . Scanalyzers 3 | . . . 1 . . . . . 2 . . . . Garrison Access 3 | . . . . 2 . . . . 1 . . . . Total Hacks 106 | . 15 2 12 21 6 . 27 . 19 4 . . . Successful 73 | . 6 2 9 11 6 . 27 . 8 4 . . . Failed 32 | . 8 . 3 10 . . . . 11 . . . . Catastrophic 7 | . 2 . . 4 . . . . 1 . . . . Database Lockouts 1 | . 1 . . . . . . . . . . . . Manual 35 | . 15 . 2 7 . 1 . . 6 . . 4 . Terminals 42 | . 15 . 5 14 . . . . 8 . . . . Fabricators 8 | . . . . 3 . . . . 5 . . . . Repair Stations 2 | . . . . . . . . . 2 . . . . Recycling Units . | . . . . . . . . . . . . . . Scanalyzers 10 | . . . 7 . . . . . 3 . . . . Garrison Access 5 | . . . . 4 . . . . 1 . . . . Terminal Hacks 56 | . 6 2 3 6 6 . 27 . 2 4 . . . Record 22 | . . 2 . . 6 . 11 . . 3 . . . Part Schematic 13 | . 3 . . 2 . . 8 . . . . . . Robot Schematic 6 | . 1 . . . . . 5 . . . . . . Robot Analysis 2 | . 1 . . 1 . . . . . . . . . Prototype ID Bank 3 | . . . . . . . 3 . . . . . . Open Door 1 | . . . . . . . . . . 1 . . . Branch Access Points 3 | . . . 1 1 . . . . 1 . . . . Unreport Threat 4 | . . . 2 2 . . . . . . . . . Locate Traps 1 | . 1 . . . . . . . . . . . . Registered Components 1 | . . . . . . . . . 1 . . . . Fabricator Hacks 5 | . . . . 3 . . . . 2 . . . . Load Schematic 3 | . . . . 1 . . . . 2 . . . . Build 2 | . . . . 2 . . . . . . . . . Repair Station Hacks 2 | . . . . . . . . . 2 . . . . Scan Component 1 | . . . . . . . . . 1 . . . . Repair 1 | . . . . . . . . . 1 . . . . Recycling Unit Hacks . | . . . . . . . . . . . . . . Scanalyzer 7 | . . . 6 . . . . . 1 . . . . Insert Component 4 | . . . 3 . . . . . 1 . . . . Analyze 3 | . . . 3 . . . . . . . . . . Garrison Access Hacks 1 | . . . . 1 . . . . . . . . . Seal Access 1 | . . . . 1 . . . . . . . . . Unauthorized Hacks 2 | . . . . 1 . . . . 1 . . . . Terminals 2 | . . . . 1 . . . . 1 . . . . Botnet 2 | . . . . 1 . . . . 1 . . . . Fabricators . | . . . . . . . . . . . . . . Repair Stations . | . . . . . . . . . . . . . . Recycling Units . | . . . . . . . . . . . . . . Scanalyzers . | . . . . . . . . . . . . . . Garrison Access . | . . . . . . . . . . . . . . Data Cores Recovered . | . . . . . . . . . . . . . . Used . | . . . . . . . . . . . . . . Hacking Detections 23 | . 4 . 2 7 . . . . 10 . . . . Full Trace Events 3 | . 1 . . 1 . . . . 1 . . . . Feedback Events 1 | . . . . . . . . . 1 . . . . Corruption 1 | . . . . . . . . . 1 . . . . Feedback Blocked . | . . . . . . . . . . . . . . Robot Schematics Acquired 6 | . 1 . . . . . 5 . . . . . . Robots Built . | . . . . . . . . . . . . . . Authchips . | . . . . . . . . . . . . . . Time . | . . . . . . . . . . . . . . Total Robot Build Rating . | . . . . . . . . . . . . . . Part Schematics Acquired 16 | . 3 . 3 2 . . 8 . . . . . . Parts Built 4 | . . . . 4 . . . . . . . . . Authchips . | . . . . . . . . . . . . . . Time 142 | . . . . 142 . . . . . . . . . Total Part Build Rating 22 | . . . . 22 . . . . . . . . . Parts Repaired 1 | . . . . . . . . . 1 . . . . Time 38 | . . . . . . . . . 38 . . . . Parts Recycled . | . . . . . . . . . . . . . . Recycled Matter . | . . . . . . . . . . . . . . Retrieved Matter . | . . . . . . . . . . . . . . Retrieved Components . | . . . . . . . . . . . . . . Parts Scanalyzed 4 | . . . 3 . . . . . 1 . . . . Part Schematics Acquired 3 | . . . 3 . . . . . . . . . . Parts Damaged . | . . . . . . . . . . . . . . Bothacking | -11 -10 -10 -8 -7 -7 -7 -7 -6 -6 -6 -6 -6 -6 ------------ Run | Yrd Mat Sub Mat Fac Low Low Dat Pro Fac Low Low Zio Dee Used RIF Installer . | . . . . . . . . . . . . . . Robots Hacked . | . . . . . . . . . . . . . . Non-combat . | . . . . . . . . . . . . . . Combat . | . . . . . . . . . . . . . . Robot Hacks Applied . | . . . . . . . . . . . . . . Relay Couplers Released . | . . . . . . . . . . . . . . Fabnet Peak Effective % . | . . . . . . . . . . . . . . Robots Rewired 3 | . . . . . . . . . . . 3 . . Allies Hacked . | . . . . . . . . . . . . . . Hacks Repelled . | . . . . . . . . . . . . . . Allies | -11 -10 -10 -8 -7 -7 -7 -7 -6 -6 -6 -6 -6 -6 -------- Run | Yrd Mat Sub Mat Fac Low Low Dat Pro Fac Low Low Zio Dee Total Allies 5 | . . . . . . . . . . . 3 2 . Largest Group 5 | . . . . . . . . . . . 3 5 5 Highest-Rated Group 116 | . . . . . . . . . . . 60 116 116 Highest-Rated Ally 31 | . . . . . . . . . . . 20 31 31 Total Orders . | . . . . . . . . . . . . . . Ally Attacks 21 | . . . . . . . . . . . . . 21 Total Damage 605 | . . . . . . . . . . . . . 605 Kills 1 | . . . . . . . . . . . . . 1 Allies Corrupted . | . . . . . . . . . . . . . . Allies Melted . | . . . . . . . . . . . . . . Intel | -11 -10 -10 -8 -7 -7 -7 -7 -6 -6 -6 -6 -6 -6 ------- Run | Yrd Mat Sub Mat Fac Low Low Dat Pro Fac Low Low Zio Dee Robot Analysis Total 2 | . 1 . . 1 . . . . . . . . . Derelict Logs Recovered 5 | . . . . . 1 1 . . . . . 3 . Drone Launches . | . . . . . . . . . . . . . . Drone Recoveries . | . . . . . . . . . . . . . . Exploration | -11 -10 -10 -8 -7 -7 -7 -7 -6 -6 -6 -6 -6 -6 ------------- Run | Yrd Mat Sub Mat Fac Low Low Dat Pro Fac Low Low Zio Dee Turns Passed 17313 | 188 1212 3073 1104 2488 904 560 1038 756 2226 719 523 1130 1392 Spaces Moved 9333 | 127 572 1059 460 1342 597 417 503 466 1258 486 343 918 785 Core 228 | 10 . 191 25 . . . 2 . . . . . . Treads 378 | . . 376 . . . . . 2 . . . . . Legs 7368 | 117 572 354 435 1342 2 . 292 464 1258 486 343 918 785 Wheels 1359 | . . 138 . . 595 417 209 . . . . . . Hover . | . . . . . . . . . . . . . . Flight . | . . . . . . . . . . . . . . Fastest Speed 50 | 50 120 120 120 125 115 115 115 120 120 120 120 120 120 Average Speed 146 | 117 166 259 196 130 123 115 130 121 136 120 120 120 120 Slowest Speed 1500 | 150 190 650 550 195 400 130 1500 250 190 190 120 120 190 Overloaded Moves . | . . . . . . . . . . . . . . Propulsion Burnouts . | . . . . . . . . . . . . . . Robots Hopped 1 | . . . . . 1 . . . . . . . . Cave-ins Triggered . | . . . . . . . . . . . . . . Exploration Rate (%) 57 | 7 89 38 38 45 67 57 99 70 20 57 49 85 78 Regions Visited 13 Branch Regions 9 Pre-discovered Areas 3 | . . . . . 1 . 1 . . 1 . . . Known Exits Taken 3 | . . . . 1 1 . . . 1 . . . . Unknown Exits Taken 10 | 1 1 1 1 . . 1 1 1 . 1 1 1 . Scrap Searched 14 | . . . . . 3 2 . 1 . 2 3 3 . Spaces Dug 63 | . . 21 . 19 1 6 . 1 13 . . . 2 Terrain Destroyed 106 | . . 34 . 19 31 6 . 1 13 . . . 2 Melee 42 | . . . . 19 1 6 . 1 13 . . . 2 Projectile 21 | . . 21 . . . . . . . . . . . AOE 43 | . . 13 . . 30 . . . . . . . . Terrain Rammed . | . . . . . . . . . . . . . . Walls Destroyed . | . . . . . . . . . . . . . . Machines Disabled . | . . . . . . . . . . . . . . Actions | -11 -10 -10 -8 -7 -7 -7 -7 -6 -6 -6 -6 -6 -6 --------- Run | Yrd Mat Sub Mat Fac Low Low Dat Pro Fac Low Low Zio Dee Total 11681 | 146 740 1222 587 1861 711 466 707 575 1620 582 413 945 1106 Wait 1084 | . 102 36 28 320 56 20 75 33 185 35 5 11 178 Move 9318 | 126 571 1058 459 1341 594 416 502 465 1257 485 342 917 785 Hop 1 | . . . . . 1 . . . . . . . . Pick Up 113 | 6 10 2 17 19 6 2 6 7 24 7 2 2 3 Fast Attach 99 | 6 3 5 13 13 6 . 7 2 18 10 1 1 14 Attach 63 | . . 4 2 3 2 . 7 11 9 4 . 2 19 Detach 24 | . 1 1 2 2 2 . 2 2 2 . . . 10 Swap 113 | . 3 18 5 21 10 9 7 9 14 7 . 7 3 Drop 139 | . 5 3 20 28 5 4 4 3 31 15 2 5 14 Fire 213 | 8 45 95 41 5 3 . . . . . . . 16 Melee 474 | . . . . 109 26 15 97 43 80 19 21 . 64 Ram . | . . . . . . . . . . . . . . Kick . | . . . . . . . . . . . . . . Crush . | . . . . . . . . . . . . . . Escape Stasis . | . . . . . . . . . . . . . . Rewire 40 | . . . . . . . . . . . 40 . . Trap . | . . . . . . . . . . . . . . Miscellaneous . | . . . . . . . . . . . . . . Route ------- -11/Scrapyard -10/Materials (discovered 5 exits: [*Mat x2] / [*Min x2] / *Sub) -10/Subcaves -8/Materials (discovered 2 exits: *Fac / *Sto) -7/Factory (discovered 4 exits: *Fac x2 / *Low x2) -7/Lower Caves (discovered 2 exits: *Low / *Zio) -7/Lower Caves -7/Data Miner -6/Proximity Caves -6/Factory (discovered 3 exits: [*Fac] / *Low x2) -6/Lower Caves -6/Lower Caves (discovered 2 exits: [*Fac] / *Zio) -6/Zion (discovered 2 exits: [*Dee] / [*Pro]) -6/Deep Caves (discovered 1 exit: [*Pro]) History --------- Turn | Location | Event 10 | -11/Scrapyard | Discovered new exit (range 15) 189 | -11/Scrapyard | Entered Materials 338 | -10/Materials | Build established: Mutant 363 | -10/Materials | Discovered new exit (range 15) 518 | -10/Materials | Discovered new exit (range 15) 742 | -10/Materials | Discovered new exit (range 15) 892 | -10/Materials | Central database locked down 1181 | -10/Materials | Discovered new exit (range 16) 1357 | -10/Materials | Discovered new exit (range 12) 1401 | -10/Materials | Entered Subcaves 1407 | -10/Subcaves | Shifting Twisted Machinery released Battle Rifle 1459 | -10/Subcaves | A swath of the cavern ceiling suddenly collapsed 1580 | -10/Subcaves | Discovered new exit (range 8) 1646 | -10/Subcaves | Shifting Twisted Machinery released Mak. Kinetic Plating 2430 | -10/Subcaves | Visited Clippyterm 2435 | -10/Subcaves | Learned Factory trap positions 2472 | -10/Subcaves | Core integrity fell below 50% 2831 | -10/Subcaves | Core integrity fell below 20% 4474 | -10/Subcaves | Entered Materials 4474 | -8/Materials | Evolved 4 slots: Propulsion x2, Utility x2 4474 | -8/Materials | Discovered new exit (range 7) 4957 | -8/Materials | Build established: Scavenger-Mutant 5467 | -8/Materials | Identified exit to Storage 5519 | -8/Materials | Discovered new exit (range 7) 5578 | -8/Materials | Entered Factory 5578 | -7/Factory | Evolved 2 slots: Propulsion x1, Utility x1 5579 | -7/Factory | Loaded intel: 83 trap records 6463 | -7/Factory | Discovered new exit (range 13) 6669 | -7/Factory | Fabricated Lgt. Antimatter Reactor (x2) 7051 | -7/Factory | Found Powered Armor 7209 | -7/Factory | Identified exit to Lower Caves 7364 | -7/Factory | Build established: Mutant 7476 | -7/Factory | Fabricated Great Axe? 7581 | -7/Factory | Discovered new exit (range 6) 8066 | -7/Factory | Entered Lower Caves 8103 | -7/Lower Caves | Lost 3 parts (3n) 8373 | -7/Lower Caves | Build established: Gladiator 8502 | -7/Lower Caves | Identified exit to Lower Caves 8692 | -7/Lower Caves | Learned Factory trap positions 8692 | -7/Lower Caves | Learned Factory emergency access door positions 8839 | -7/Lower Caves | A Derelict revealed a hidden shortcut to a safe place 8970 | -7/Lower Caves | Entered another Lower Caves area 9053 | -7/Lower Caves | Learned 4 Factory zone layouts 9393 | -7/Lower Caves | Acquired the password to a Derelict Tinkerer's latest research 9405 | -7/Lower Caves | Found Prototype Special Weapon 9495 | -7/Lower Caves | Discovered new exit (range 9) 9530 | -7/Lower Caves | Entered Data Miner 9530 | -7/Data Miner | Discovered new exit (range 6) 9552 | -7/Data Miner | Met Data Miner 9580 | -7/Data Miner | Learned location of Section 7 (-2) 9580 | -7/Data Miner | Acquired the access code to Warlord's prototype stash 9610 | -7/Data Miner | Received God Mode back door access code from Data Miner 9652 | -7/Data Miner | Data Conduit disabled 9969 | -7/Data Miner | Core integrity fell below 50% 9982 | -7/Data Miner | Lost 5 parts (1p1n3u) 10051 | -7/Data Miner | Lost 5 parts (2n3u) 10082 | -7/Data Miner | Found Prototype Device 10082 | -7/Data Miner | Identified Exp. Thermal Shield 10091 | -7/Data Miner | Found Exp. Thermal Shield 10353 | -7/Data Miner | Build established: Scavenger-Gladiator 10456 | -7/Data Miner | Found Exp. Thermal Shield 10568 | -7/Data Miner | Entered Proximity Caves 10577 | -6/Proximity Caves | Attracted the attention of an 0b10 checkpoint 10798 | -6/Proximity Caves | Lost 3 parts (1n2u) 11038 | -6/Proximity Caves | Build established: Scavenger-Mutant 11125 | -6/Proximity Caves | Core integrity fell below 20% 11168 | -6/Proximity Caves | Lost 5 parts (2n2u1w) 11291 | -6/Proximity Caves | Discovered new exit (range 7) 11324 | -6/Proximity Caves | Entered Factory 11324 | -6/Factory | Evolved 2 slots: Power x1, Utility x1 11326 | -6/Factory | Loaded intel: 121 trap records 11828 | -6/Factory | Lost 4 parts (1u3w) 11919 | -6/Factory | Discovered new exit (range 5) 11932 | -6/Factory | System corruption reached 10% 12514 | -6/Factory | Identified exit to Lower Caves 12993 | -6/Factory | Repaired Hardlight Generator 13149 | -6/Factory | Build established: Scavenger-Gladiator 13172 | -6/Factory | Discovered new exit (range 12) 13550 | -6/Factory | Entered Lower Caves 13804 | -6/Lower Caves | Lost 3 parts (1p1n1u) 13980 | -6/Lower Caves | Learned location of Extension (-4) 13980 | -6/Lower Caves | Learned Armory security intel 14083 | -6/Lower Caves | Discovered new exit (range 11) 14269 | -6/Lower Caves | Entered another Lower Caves area 14272 | -6/Lower Caves | Attracted the attention of an 0b10 checkpoint 14314 | -6/Lower Caves | Discovered new exit (range 11) 14567 | -6/Lower Caves | Discovered new exit (range 12) 14596 | -6/Lower Caves | Attacked by a delusional Derelict stockpiling Unaware 14792 | -6/Lower Caves | Entered Zion 14792 | -6/Zion | Accompanied by 3 allies 14815 | -6/Zion | Given the Hacking Drone Bay 14816 | -6/Zion | Found Prototype Device 14892 | -6/Zion | System corruption cleaned by Quarantine Array 14963 | -6/Zion | Discovered new exit (range 9) 15144 | -6/Zion | Found CR-A16's Pointy Stick 15230 | -6/Zion | Gained Derelict followers 15491 | -6/Zion | Learned 8 Factory zone layouts 15512 | -6/Zion | Acquired unknown access codes intercepted by a Zionite 15603 | -6/Zion | Visited the Megawrench Repair Shop 15603 | -6/Zion | Megawrench repaired 11 parts 15884 | -6/Zion | Opened final containment barrier to the Deep Caves 15904 | -6/Zion | Discovered new exit (range 3) 15904 | -6/Zion | Saw the warning signs outside the Deep Caves entrance 15922 | -6/Zion | Entered Deep Caves 15922 | -6/Deep Caves | Accompanied by 5 allies 16194 | -6/Deep Caves | Attacked by Z-Imprinter 16267 | -6/Deep Caves | Destroyed Z-Imprinter 16280 | -6/Deep Caves | Lost 4 parts (1n2u1w) 16286 | -6/Deep Caves | Lost 5 allies 16294 | -6/Deep Caves | Found Prototype Protection 16294 | -6/Deep Caves | Identified Zio. Weapon Casing 16527 | -6/Deep Caves | Z-Facility disabled 16598 | -6/Deep Caves | Identified Molecular Deconstructor 16693 | -6/Deep Caves | Found Prototype Protection 16693 | -6/Deep Caves | Identified Zio. Heavy Carapace 16780 | -6/Deep Caves | Discovered new exit (range 12) 17051 | -6/Deep Caves | Build established: Derelict-Gladiator 17222 | -6/Deep Caves | Spotted AG-62875 17275 | -6/Deep Caves | Core integrity fell below 50% 17294 | -6/Deep Caves | Core integrity fell below 20% 17314 | -6/Deep Caves | Destroyed by AG-62875 with Assembled Focal Cannon Last Messages --------------- 17250_ Chainsword follow-up attack on AG-62875. 17259_ Exp. Thermal Shield destroyed. 17259_ Imp. Heavy Armor Plating destroyed. 17263_ Carbon-fiber Leg destroyed. 17266_ Chainsword follow-up attack on AG-62875. 17266_ Carbon-fiber Leg destroyed. 17274_ Imp. Light Armor Plating destroyed. 17283_ Melee Analysis Suite destroyed. 17285_ Chainsword follow-up attack on AG-62875. 17287_ Imp. Light Armor Plating destroyed. 17287_ Chainsword destroyed. 17293_ Myomer Leg destroyed. 17300_ Ripper destroyed. 17304_ Imp. Deuterium Engine destroyed. 17304_ Imp. Light Armor Plating destroyed. 17309_ Entropy package works its way towards AG-62875 core. 17311_ AG-62875 core destabilizing. 17312_ Entropy package works its way towards AG-62875 core. Map ----- +----------------------------------------------------+ | ??????????????????????????????????# ##? | | ????????????????????????? #??????## ###?? | | ??????????????????????? ?????## ##???? | | ???????????????????? ????## #????? | | ??????????????????[ ???## ## #?#### | | ????????????????[ #??# #### ### # | | ???????????????? ! #?# ##???### | | ??????????????? #?## #####??# | | ??????????????? ! #??# #???# | | ?????????????? * ! #?## ##???### | | ?????????????? ! g* #?# ##??????## | | ???????????? b #?# ##???????## | | ??????????? * #?## #???????## | | ??????????? b #### ##??????# | | ?????????? =! * = ## ###???## | | ?????????? ## ##### | | ????????? = ## | | ????????? [[[ ### # | | ????????? ######## | | ????????""" = #?????? | | ????????" [ h #?????? | | ?????????" ##### ##????? | | ????????" #??# ###??? | | ?????????" ##?# ## #### | | ????????" # ; #?# #### # | | ????????" #### ##@;# ##?## ## ##??### ## | | ????????""" #????# ?#G####???##?###?????#####? | | ???????????????????#??# #??????????????????????? | | ???????????????????????#???????????????????????? | | | | | | | | | | | | | | | | | | | | | | | | | | | | | | | | | | | | | | | | | | | +----------------------------------------------------+ Best States ------------- Heat Dissipation 45 Energy Generation 32 Energy Capacity 1080 Matter Stores 300 Matter Capacity 300 Sight Range 16 Robot Scan Range 16 Terrain Scan Range 16 Terrain Scan Density 210 Armor Coverage 1800 Resistance: KI 30 Resistance: TH 30 Core Shielding 30 Melee Speed Boost 20 Evasion (%) 60 Melee Accuracy 6 Recoil Reduction 2 Offensive Hacking 10 Item Schematics ----------------- Hcp. Storage Unit | -10/Materials | Hacked Huge Storage Unit | -10/Materials | Hacked Lrg. Storage Unit | -10/Materials | Hacked Adv. Visual Processing Unit | -8/Materials | Scanalyzed Terrain Scan Processor | -8/Materials | Scanalyzed Structural Scanner | -8/Materials | Scanalyzed Great Axe | -7/Factory | Hacked Microactuators | -7/Factory | Hacked Combat Drone Bay | -7/Data Miner | Free Lgt. Regenerative Plating | -7/Data Miner | Free Biomechanical Wings | -7/Data Miner | Free Com. Ion Cannon | -7/Data Miner | Free Exp. Weapon Shielding | -7/Data Miner | Free Nuclear Pulse Array | -7/Data Miner | Free Adv. Shield Generator | -7/Data Miner | Free Imp. Arc Projector | -7/Data Miner | Free Robot Schematics ------------------ S-10 Pest | -10/Materials | Hacked M-22 Extractor | -7/Data Miner | Free M-14 Sweeper | -7/Data Miner | Free R-10 Processor | -7/Data Miner | Free G-47 Trooper | -7/Data Miner | Free B-48 Gladiator | -7/Data Miner | Free Fabricated ------------ Lgt. Antimatter Reactor | x2 | -7/Factory | Preloaded Great Axe | x2 | -7/Factory Alien Tech Used ----------------- None Achievements -------------- Are We The Baddies? Challenges ------------ None Game ------ Seed FortressSuperchargedHumpback Manual? 0 Play Time 02:17:02 Cumulative 119.8 hours Start 2024.04.29 @ 10:17:22 End 2024.04.29 @ 12:36:24 Sessions 1 Manual Loads 0 Difficulty Rogue Special Mode None Game No. 96 Rogue 96 Adventurer 0 Explorer 0 Win Type - Total 3 Types 2/0/1/0/0/0/0/0/0 Lore% 51 Gallery% 67 Achievement% 53 Wizard Run 0 Options --------- Layout 2 ASCII 0 Keyboard 0 Movement Mouse Keybinds 1 Fullscreen 2 Font 32/SmallcapsGlow Map View 50x44 Zoom Use 0% Tactical HUD 1 Map Filters NONE Filters NONE Steam 1 RUN: 77d5b9f8-8756-455c-a3cb-2faf5dbba327